fUSD/lending_fUSD_20250302
["ID","MTS","AMOUNT","RATE_DAILY","PERIOD"]
[355127912,1740930660054,-500.0,0.00027123,2]
[355127913,1740930660065,-1121.7,0.00027123,2]
[355127914,1740930660076,-516.14,0.00027123,2]
[355127915,1740930660086,-500.0,0.00027123,2]
[355127916,1740930660096,-1622.86,0.00027123,2]
[355127917,1740930660106,-1793.0,0.00027123,2]
[355127918,1740930660116,-1560.4,0.00027123,2]
[355127919,1740930660126,-500.0,0.00027123,2]
[355127920,1740930660136,-5513.28332019,0.00027123,2]
[355127921,1740930660236,-486.71667981,0.00027123,2]
[355127922,1740930660247,-500.0,0.00027123,2]
[355127923,1740930660259,-618.43,0.00027123,2]
[355127924,1740930660270,-500.0,0.00027123,2]
[355127925,1740930660286,-500.0,0.00027123,2]
[355127926,1740930660297,-500.0,0.00027123,2]
[355127927,1740930660307,-760.98,0.00027123,2]
[355127928,1740930660317,-33.87331126,0.00027123,2]
[355127929,1740930660330,-855.59668874,0.00027123,2]
[355127930,1740930660339,-733.37,0.00027123,2]
[355127931,1740930660350,-507.6,0.00027123,2]
[355127932,1740930660360,-806.07,0.00027123,2]
[355127933,1740930660371,-2443.66,0.00027123,2]
[355127934,1740930660381,-335.78,0.00027123,2]
[355127935,1740930660391,-3279.81,0.00027123,2]
[355127936,1740930660401,-1526.61,0.00027123,2]
[355127937,1740930660411,-1347.2,0.00027123,2]
[355127938,1740930660421,-727.44,0.00027123,2]
[355127939,1740930660431,-500.0,0.00027123,2]
[355127940,1740930660441,-441.09,0.0002726,2]
[355127941,1740930660451,-441.09,0.0002726,2]
[355127942,1740930660460,-777.52,0.0002726,2]
[355127943,1740930660471,-441.09,0.0002726,2]
[355127944,1740930660481,-1554.59,0.0002726,2]
[355127945,1740930660491,-777.52,0.0002726,2]
[355127946,1740930660501,-441.09,0.0002726,2]
[355127947,1740930660513,-203.28,0.0002726,2]
[355127948,1740930660527,-441.09,0.0002726,2]
[355127949,1740930660539,-169.793464,0.00027397,2]
[355127950,1740930660550,-194.188231,0.00027397,2]
[355127951,1740930660559,-500.0,0.00027397,2]
[355127952,1740930660569,-500.0,0.00027397,2]
[355127953,1740930660578,-500.0,0.00027397,2]
[355127954,1740930660591,-500.0,0.00027397,2]
[355127955,1740930660600,-1012.05,0.00027397,2]
[355127956,1740930660610,-1000.0,0.00027397,2]
[355127957,1740930660620,-1055.730468,0.00027397,2]
[355127958,1740930660630,-849.78,0.00027397,2]
[355127959,1740930660639,-492.85,0.00027397,2]
[355127960,1740930660649,-500.0,0.00027397,2]
[355127961,1740930660659,-500.0,0.00027397,2]
[355127962,1740930660669,-1399.85,0.00027397,2]
[355127963,1740930660680,-2759.04,0.00027397,2]
[355127964,1740930660690,-1649.39,0.00027397,2]
[355127965,1740930660699,-1036.89,0.00027397,2]
[355127966,1740930660709,-777.5,0.00027397,2]
[355127967,1740930660719,-1965.61,0.00027397,2]
[355127968,1740930660728,-763.07,0.00027397,2]
[355127969,1740930660739,-500.0,0.00027397,2]
[355127970,1740930660749,-1418.55,0.00027397,2]
[355127971,1740930660759,-500.0,0.00027397,2]
[355127972,1740930660768,-1316.21,0.00027397,2]
[355127973,1740930660781,-500.0,0.00027397,2]
[355127974,1740930660791,-296.3,0.00027397,2]
[355127975,1740930660800,-1430.92,0.00027397,2]
[355127976,1740930660810,-1355.18,0.00027397,2]
[355127977,1740930660820,-500.0,0.00027397,2]
[355127978,1740930660829,-500.0,0.00027397,2]
[355127979,1740930660838,-500.0,0.00027397,2]
[355127980,1740930660848,-622.82,0.00027397,2]
[355127981,1740930660858,-480.71229182,0.00027397,2]
[355127982,1740930660871,-751.91770818,0.00027397,2]
[355127983,1740930660881,-528.98,0.00027397,2]
[355127984,1740930660891,-500.0,0.00027397,2]
[355127985,1740930660901,-500.0,0.00027397,2]
[355127986,1740930660911,-823.0,0.00027397,2]
[355127987,1740930660921,-831.23,0.00027397,2]
[355127988,1740930660930,-580.87,0.00027397,2]
[355127989,1740930660939,-603.63,0.00027397,2]
[355127990,1740930660949,-500.0,0.00027397,2]
[355127991,1740930660959,-1637.62,0.00027397,2]
[355127992,1740930660968,-1394.88,0.00027397,2]
[355127993,1740930660978,-4299.86,0.00027397,2]
[355127994,1740930660988,-2839.17,0.00027397,2]
[355127995,1740930660998,-500.0,0.00027397,2]
[355127996,1740930661008,-766.74,0.00027397,2]
[355127997,1740930661017,-749.36,0.00027397,2]
[355127998,1740930661028,-910.07,0.00027397,2]
[355127999,1740930661038,-209.48935488,0.00027397,2]
[355128000,1740930661049,-301.25,0.00027397,2]
[355128001,1740930661059,-500.0,0.00027397,2]
[355128002,1740930661069,-500.0,0.00027397,2]
[355128003,1740930661079,-664.19769042,0.00027397,2]
[355128004,1740930661092,-457.50230958,0.00027397,2]
[355128005,1740930661102,-516.14,0.00027397,2]
[355128006,1740930661112,-500.0,0.00027397,2]
[355128007,1740930661123,-1622.86,0.00027397,2]
[355128008,1740930661133,-935.57769042,0.00027397,2]
[355128009,1740930661175,-616.77,0.00027397,2]
[355128010,1740930661187,-240.65230958,0.00027397,2]
[355128011,1740930661198,-1183.5555636,0.00027397,2]
[355128012,1740930661210,-376.8444364,0.00027397,2]
[355128013,1740930661220,-500.0,0.00027397,2]
[355128014,1740930661232,-618.43,0.00027397,2]
[355128015,1740930661241,-527.72,0.00027397,2]
[355128016,1740930661251,-500.0,0.00027397,2]
[355128017,1740930661261,-500.0,0.00027397,2]
[355128018,1740930661270,-500.0,0.00027397,2]
[355128019,1740930661283,-760.98,0.00027397,2]
[355128020,1740930661293,-124.0755636,0.00027397,2]
[355128021,1740930661305,-765.3944364,0.00027397,2]
[355128022,1740930661315,-733.37,0.00027397,2]
[355128023,1740930661325,-806.07,0.00027397,2]
[355128024,1740930661336,-2443.66,0.00027397,2]
[355128025,1740930661346,-3279.81,0.00027397,2]
[355128026,1740930661355,-1526.61,0.00027397,2]
[355128027,1740930661366,-1347.2,0.00027397,2]
[355128028,1740930661375,-727.44,0.00027397,2]
[355128029,1740930661385,-500.0,0.00027397,2]
[355128030,1740930661395,-151.0,0.00027397,7]
[355128031,1740930661405,-150.97,0.00027397,2]
[355128032,1740930661414,-150.0,0.00027397,2]
[355128033,1740930661424,-230.42,0.00027397,2]
[355128034,1740930661434,-150.0,0.00027397,2]
[355128035,1740930661443,-150.0,0.00027397,2]
[355128036,1740930661453,-150.0,0.00027397,2]
[355128037,1740930661463,-150.0,0.00027397,2]
[355128038,1740930661472,-250.85,0.00027397,2]
[355128039,1740930661482,-150.0,0.00027397,2]
[355128040,1740930661494,-150.0,0.00027397,2]
[355128041,1740930661506,-150.0,0.00027425,2]
[355128042,1740930661515,-150.0,0.00027496,2]
[355128043,1740930661528,-192.27471195,0.000275,2]
[355128044,1740930661539,-150.0,0.00027501,2]
[355128045,1740930661549,-150.0,0.00027523,2]
[355128046,1740930661559,-1311.2,0.00027564,2]
[355128047,1740930661568,-2000.0,0.00027598,4]
[355128048,1740930661581,-150.0,0.0002761,2]
[355128049,1740930661591,-169.793464,0.00027671,2]
[355128050,1740930661601,-194.188231,0.00027671,2]
[355128051,1740930661610,-500.0,0.00027671,2]
[355128052,1740930661620,-500.0,0.00027671,2]
[355128053,1740930661630,-500.0,0.00027671,2]
[355128054,1740930661640,-500.0,0.00027671,2]
[355128055,1740930661650,-1012.05,0.00027671,2]
[355128056,1740930661660,-849.78,0.00027671,2]
[355128057,1740930661670,-500.0,0.00027671,2]
[355128058,1740930661681,-500.0,0.00027671,2]
[355128059,1740930661691,-151.0,0.00027671,7]
[355128060,1740930661701,-1399.85,0.00027671,2]
[355128061,1740930661711,-2759.04,0.00027671,2]
[355128062,1740930661721,-1649.39,0.00027671,2]
[355128063,1740930661731,-1036.89,0.00027671,2]
[355128064,1740930661741,-777.5,0.00027671,2]
[355128065,1740930661751,-1965.61,0.00027671,2]
[355128066,1740930661761,-763.07,0.00027671,2]
[355128067,1740930661771,-500.0,0.00027671,2]
[355128068,1740930661785,-1418.55,0.00027671,2]
[355128069,1740930661796,-500.0,0.00027671,2]
[355128070,1740930661806,-1316.21,0.00027671,2]
[355128071,1740930661816,-500.0,0.00027671,2]
[355128072,1740930661827,-1430.92,0.00027671,2]
[355128073,1740930661836,-1355.18,0.00027671,2]
[355128074,1740930661846,-500.0,0.00027671,2]
[355128075,1740930661857,-500.0,0.00027671,2]
[355128076,1740930661867,-500.0,0.00027671,2]
[355128077,1740930661877,-1232.63,0.00027671,2]
[355128078,1740930661888,-528.98,0.00027671,2]
[355128079,1740930661898,-500.0,0.00027671,2]
[355128080,1740930661908,-500.0,0.00027671,2]
[355128081,1740930661918,-823.0,0.00027671,2]
[355128082,1740930661928,-831.23,0.00027671,2]
[355128083,1740930661938,-580.87,0.00027671,2]
[355128084,1740930661947,-603.63,0.00027671,2]
[355128085,1740930661957,-500.0,0.00027671,2]
[355128086,1740930661967,-1637.62,0.00027671,2]
[355128087,1740930661977,-1394.88,0.00027671,2]
[355128088,1740930661987,-4299.86,0.00027671,2]
[355128089,1740930661997,-2839.17,0.00027671,2]
[355128090,1740930662007,-500.0,0.00027671,2]
[355128091,1740930662017,-766.74,0.00027671,2]
[355128092,1740930662030,-749.36,0.00027671,2]
[355128093,1740930662040,-910.07,0.00027671,2]
[355128094,1740930662051,-500.0,0.00027671,2]
[355128095,1740930662061,-500.0,0.00027671,2]
[355128096,1740930662071,-1121.7,0.00027671,2]
[355128097,1740930662082,-516.14,0.00027671,2]
[355128098,1740930662091,-500.0,0.00027671,2]
[355128099,1740930662102,-1622.86,0.00027671,2]
[355128100,1740930662112,-1793.0,0.00027671,2]
[355128101,1740930662121,-1560.4,0.00027671,2]
[355128102,1740930662131,-500.0,0.00027671,2]
[355128103,1740930662141,-618.43,0.00027671,2]
[355128104,1740930662150,-505.65,0.00027671,2]
[355128105,1740930662161,-500.0,0.00027671,2]
[355128106,1740930662172,-489.56363653,0.00027671,2]
[355128107,1740930662181,-760.98,0.00027671,2]
[355128108,1740930662192,-889.47,0.00027671,2]
[355128109,1740930662203,-733.37,0.00027671,2]
[355128110,1740930662212,-806.07,0.00027671,2]
[355128111,1740930662223,-2443.66,0.00027671,2]
[355128112,1740930662233,-151.0,0.00027671,7]
[355128113,1740930662243,-3279.81,0.00027671,2]
[355128114,1740930662255,-1526.61,0.00027671,2]
[355128115,1740930662265,-1347.2,0.00027671,2]
[355128116,1740930662280,-727.44,0.00027671,2]
[355128117,1740930662290,-500.0,0.00027671,2]
[355128118,1740930662301,-10939.59268309,0.000279,4]
[355128119,1740930662311,-150.0,0.00027911,2]
[355128120,1740930662322,-1077.82461427,0.00027944,15]
[355128121,1740930662331,-169.793464,0.00027945,2]
[355128122,1740930662341,-194.188231,0.00027945,2]
[355128123,1740930662351,-500.0,0.00027945,2]
[355128124,1740930662360,-500.0,0.00027945,2]
[355128125,1740930662370,-500.0,0.00027945,2]
[355128126,1740930662380,-500.0,0.00027945,2]
[355128127,1740930662390,-1012.05,0.00027945,2]
[355128128,1740930662399,-849.78,0.00027945,2]
[355128129,1740930662409,-151.31246959,0.00027945,2]
[355128130,1740930662418,-500.0,0.00027945,2]
[355128131,1740930662428,-1399.85,0.00027945,2]
[355128132,1740930662438,-2759.04,0.00027945,2]
[355128133,1740930662448,-1649.39,0.00027945,2]
[355128134,1740930662457,-1036.89,0.00027945,2]
[355128135,1740930662467,-777.5,0.00027945,2]
[355128136,1740930662477,-1965.61,0.00027945,2]
[355128137,1740930662487,-763.07,0.00027945,2]
[355128138,1740930662498,-500.0,0.00027945,2]
[355128139,1740930662509,-1418.55,0.00027945,2]
[355128140,1740930662521,-500.0,0.00027945,2]
[355128141,1740930662537,-1316.21,0.00027945,2]
[355128142,1740930662548,-500.0,0.00027945,2]
[355128143,1740930662558,-1430.92,0.00027945,2]
[355128144,1740930662569,-1355.18,0.00027945,2]
[355128145,1740930662580,-500.0,0.00027945,2]
[355128146,1740930662592,-500.0,0.00027945,2]
[355128147,1740930662603,-511.28483315,0.00027945,2]
[355128148,1740930662615,-1232.63,0.00027945,2]
[355128149,1740930662762,-528.98,0.00027945,2]
[355128150,1740930662773,-631.05,0.00027945,2]
[355128151,1740930662793,-500.0,0.00027945,2]
[355128152,1740930662805,-823.0,0.00027945,2]
[355128153,1740930662816,-831.23,0.00027945,2]
[355128154,1740930662829,-580.87,0.00027945,2]
[355128155,1740930662840,-603.63,0.00027945,2]
[355128156,1740930662851,-500.0,0.00027945,2]
[355128157,1740930662863,-1637.62,0.00027945,2]
[355128158,1740930662874,-1394.88,0.00027945,2]
[355128159,1740930662885,-4299.86,0.00027945,2]
[355128160,1740930662895,-2839.17,0.00027945,2]
[355128161,1740930662905,-500.0,0.00027945,2]
[355128162,1740930662916,-766.74,0.00027945,2]
[355128163,1740930662926,-749.36,0.00027945,2]
[355128164,1740930662936,-910.07,0.00027945,2]
[355128165,1740930662946,-500.0,0.00027945,2]
[355128166,1740930662956,-500.0,0.00027945,2]
[355128167,1740930662966,-1121.7,0.00027945,2]
[355128168,1740930662976,-516.14,0.00027945,2]
[355128169,1740930662986,-500.0,0.00027945,2]
[355128170,1740930662996,-1622.86,0.00027945,2]
[355128171,1740930663006,-1793.0,0.00027945,2]
[355128172,1740930663017,-1560.4,0.00027945,2]
[355128173,1740930663031,-510.99,0.00027945,2]
[355128174,1740930663042,-618.43,0.00027945,2]
[355128175,1740930663053,-500.0,0.00027945,2]
[355128176,1740930663064,-760.98,0.00027945,2]
[355128177,1740930663074,-889.47,0.00027945,2]
[355128178,1740930663085,-733.37,0.00027945,2]
[355128179,1740930663095,-806.07,0.00027945,2]
[355128180,1740930663105,-2443.66,0.00027945,2]
[355128181,1740930663115,-3279.81,0.00027945,2]
[355128182,1740930663126,-1526.61,0.00027945,2]
[355128183,1740930663136,-1347.2,0.00027945,2]
[355128184,1740930663147,-727.44,0.00027945,2]
[355128185,1740930663157,-500.0,0.00027945,2]
[355128186,1740930663168,-8714.36336184,0.00027969,4]
[355128187,1740930663180,-6425.9934179,0.00027994,2]
[355128188,1740930663191,-500.0,0.00028,120]
[355128189,1740930663202,-1980.94989603,0.00028017,2]
[355128190,1740930663213,-576.66,0.00028017,120]
[355128191,1740930663224,-150.0,0.00028094,2]
[355128192,1740930663235,-150.0,0.00028215,2]
[355128193,1740930663245,-169.793464,0.00028219,2]
[355128194,1740930663255,-194.188231,0.00028219,2]
[355128195,1740930663266,-153.185899,0.00028219,2]
[355128196,1740930663280,-500.0,0.00028219,2]
[355128197,1740930663290,-500.0,0.00028219,2]
[355128198,1740930663301,-500.0,0.00028219,2]
[355128199,1740930663312,-500.0,0.00028219,2]
[355128200,1740930663322,-1012.05,0.00028219,2]
[355128201,1740930663332,-849.78,0.00028219,2]
[355128202,1740930663341,-500.0,0.00028219,2]
[355128203,1740930663352,-500.0,0.00028219,2]
[355128204,1740930663362,-500.0,0.00028219,2]
[355128205,1740930663372,-500.0,0.00028219,2]
[355128206,1740930663382,-500.0,0.00028219,2]
[355128207,1740930663392,-500.0,0.00028219,2]
[355128208,1740930663401,-500.0,0.00028219,2]
[355128209,1740930663412,-500.0,0.00028219,2]
[355128210,1740930663422,-500.0,0.00028219,2]
[355128211,1740930663432,-500.0,0.00028219,2]
[355128212,1740930663442,-500.0,0.00028219,2]
[355128213,1740930663451,-500.0,0.00028219,2]
[355128214,1740930663461,-500.0,0.00028219,2]
[355128215,1740930663471,-500.0,0.00028219,2]
[355128216,1740930663480,-802.0,0.00028219,2]
[355128217,1740930663490,-500.0,0.00028219,2]
[355128218,1740930663500,-500.0,0.00028219,2]
[355128219,1740930663511,-500.0,0.00028219,2]
[355128220,1740930663522,-500.0,0.00028219,2]
[355128221,1740930663536,-500.0,0.00028219,2]
[355128222,1740930663546,-500.0,0.00028219,2]
[355128223,1740930663557,-500.0,0.00028219,2]
[355128224,1740930663567,-500.0,0.00028219,2]
[355128225,1740930663578,-500.0,0.00028219,2]
[355128226,1740930663590,-500.0,0.00028219,2]
[355128227,1740930663600,-500.0,0.00028219,2]
[355128228,1740930663610,-500.0,0.00028219,2]
[355128229,1740930663620,-500.0,0.00028219,2]
[355128230,1740930663630,-500.0,0.00028219,2]
[355128231,1740930663641,-500.0,0.00028219,2]
[355128232,1740930663651,-500.0,0.00028219,2]
[355128233,1740930663661,-500.0,0.00028219,2]
[355128234,1740930663671,-500.0,0.00028219,2]
[355128235,1740930663683,-500.0,0.00028219,2]
[355128236,1740930663694,-650.0,0.00028219,2]
[355128237,1740930663705,-500.0,0.00028219,2]
[355128238,1740930663715,-151.0,0.00028219,7]
[355128239,1740930663725,-1399.85,0.00028219,2]
[355128240,1740930663736,-2759.04,0.00028219,2]
[355128241,1740930663747,-1649.39,0.00028219,2]
[355128242,1740930663758,-1036.89,0.00028219,2]
[355128243,1740930663769,-777.5,0.00028219,2]
[355128244,1740930663784,-1965.61,0.00028219,2]
[355128245,1740930663794,-763.07,0.00028219,2]
[355128246,1740930663804,-319.99461903,0.00028219,2]
[355128247,1740930663814,-1418.55,0.00028219,2]
[355128248,1740930663824,-500.0,0.00028219,2]
[355128249,1740930663835,-1316.21,0.00028219,2]
[355128250,1740930663845,-500.0,0.00028219,2]
[355128251,1740930663856,-1430.92,0.00028219,2]
[355128252,1740930663867,-1355.18,0.00028219,2]
[355128253,1740930663878,-500.0,0.00028219,2]
[355128254,1740930663889,-500.0,0.00028219,2]
[355128255,1740930663900,-1232.63,0.00028219,2]
[355128256,1740930663910,-528.98,0.00028219,2]
[355128257,1740930663921,-500.0,0.00028219,2]
[355128258,1740930663932,-823.0,0.00028219,2]
[355128259,1740930663942,-831.23,0.00028219,2]
[355128260,1740930663953,-580.87,0.00028219,2]
[355128261,1740930663963,-603.63,0.00028219,2]
[355128262,1740930663973,-500.0,0.00028219,2]
[355128263,1740930663984,-1637.62,0.00028219,2]
[355128264,1740930663994,-1394.88,0.00028219,2]
[355128265,1740930664004,-4299.86,0.00028219,2]
[355128266,1740930664015,-2839.17,0.00028219,2]
[355128267,1740930664025,-500.0,0.00028219,2]
[355128268,1740930664041,-766.74,0.00028219,2]
[355128269,1740930664052,-749.36,0.00028219,2]
[355128270,1740930664063,-910.07,0.00028219,2]
[355128271,1740930664073,-566.86,0.00028219,2]
[355128272,1740930664085,-500.0,0.00028219,2]
[355128273,1740930664096,-1121.7,0.00028219,2]
[355128274,1740930664107,-516.14,0.00028219,2]
[355128275,1740930664117,-500.0,0.00028219,2]
[355128276,1740930664127,-1622.86,0.00028219,2]
[355128277,1740930664138,-1793.0,0.00028219,2]
[355128278,1740930664148,-1560.4,0.00028219,2]
[355128279,1740930664159,-618.43,0.00028219,2]
[355128280,1740930664170,-500.0,0.00028219,2]
[355128281,1740930664180,-760.98,0.00028219,2]
[355128282,1740930664191,-889.47,0.00028219,2]
[355128283,1740930664201,-733.37,0.00028219,2]
[355128284,1740930664212,-806.07,0.00028219,2]
[355128285,1740930664223,-2443.66,0.00028219,2]
[355128286,1740930664234,-3279.81,0.00028219,2]
[355128287,1740930664244,-1526.61,0.00028219,2]
[355128288,1740930664255,-1347.2,0.00028219,2]
[355128289,1740930664266,-727.44,0.00028219,2]
[355128290,1740930664277,-500.0,0.00028219,2]
[355128291,1740930664292,-790.4,0.00028219,2]
[355128292,1740930664302,-213.28,0.00028219,2]
[355128293,1740930664313,-150.0,0.00028219,2]
[355128294,1740930664323,-150.0,0.00028219,2]
[355128295,1740930664333,-153.2,0.00028219,2]
[355128296,1740930664343,-150.0,0.00028219,2]
[355128297,1740930664353,-150.0,0.00028219,2]
[355128298,1740930664363,-150.0,0.00028219,2]
[355128299,1740930664374,-150.0,0.00028219,2]
[355128300,1740930664384,-150.0,0.00028219,2]
[355128301,1740930664394,-150.0,0.00028219,2]
[355128302,1740930664404,-153.55,0.00028219,2]
[355128303,1740930664415,-440.1,0.00028219,2]
[355128304,1740930664425,-440.1,0.00028219,2]
[355128305,1740930664434,-150.0,0.00028219,2]
[355128306,1740930664444,-440.1,0.00028219,2]
[355128307,1740930664454,-150.0,0.00028219,2]
[355128308,1740930664463,-150.0,0.00028281,2]
[355128309,1740930664473,-500.0,0.00028314,2]
[355128310,1740930664482,-500.0,0.00028314,2]
[355128311,1740930664493,-500.0,0.00028314,2]
[355128312,1740930664506,-500.0,0.00028314,2]
[355128313,1740930664516,-500.0,0.00028314,2]
[355128314,1740930664526,-500.0,0.00028314,2]
[355128315,1740930664541,-559.0,0.00028314,2]
[355128316,1740930664551,-150.0,0.00028331,2]
[355128317,1740930664561,-150.0,0.00028336,2]
[355128318,1740930664573,-150.0,0.00028339,2]
[355128319,1740930664584,-150.0,0.00028367,2]
[355128320,1740930664594,-2000.0,0.00028399,4]
[355128321,1740930664604,-150.0,0.00028415,2]
[355128322,1740930664613,-169.793464,0.00028493,2]
[355128323,1740930664623,-194.188231,0.00028493,2]
[355128324,1740930664633,-500.0,0.00028493,2]
[355128325,1740930664642,-500.0,0.00028493,2]
[355128326,1740930664652,-500.0,0.00028493,2]
[355128327,1740930664663,-188.79260379,0.00028493,2]
[355128328,1740930664672,-1012.05,0.00028493,2]
[355128329,1740930664682,-849.78,0.00028493,2]
[355128330,1740930664692,-500.0,0.00028493,2]
[355128331,1740930664702,-1399.85,0.00028493,2]
[355128332,1740930664712,-2759.04,0.00028493,2]
[355128333,1740930664721,-1649.39,0.00028493,2]
[355128334,1740930664732,-1036.89,0.00028493,2]
[355128335,1740930664742,-777.5,0.00028493,2]
[355128336,1740930664752,-1965.61,0.00028493,2]
[355128337,1740930664762,-763.07,0.00028493,2]
[355128338,1740930664771,-1418.55,0.00028493,2]
[355128339,1740930664785,-500.0,0.00028493,2]
[355128340,1740930664796,-1316.21,0.00028493,2]
[355128341,1740930664806,-500.0,0.00028493,2]
[355128342,1740930664817,-1430.92,0.00028493,2]
[355128343,1740930664826,-1355.18,0.00028493,2]
[355128344,1740930664835,-636.31,0.00028493,2]
[355128345,1740930664845,-500.0,0.00028493,2]
[355128346,1740930664855,-1232.63,0.00028493,2]
[355128347,1740930664865,-528.98,0.00028493,2]
[355128348,1740930664875,-500.0,0.00028493,2]
[355128349,1740930664886,-823.0,0.00028493,2]
[355128350,1740930664895,-831.23,0.00028493,2]
[355128351,1740930664906,-580.87,0.00028493,2]
[355128352,1740930664915,-603.63,0.00028493,2]
[355128353,1740930664925,-500.0,0.00028493,2]
[355128354,1740930664935,-1637.62,0.00028493,2]
[355128355,1740930664945,-1394.88,0.00028493,2]
[355128356,1740930664955,-4299.86,0.00028493,2]
[355128357,1740930664964,-2839.17,0.00028493,2]
[355128358,1740930664975,-500.0,0.00028493,2]
[355128359,1740930664985,-766.74,0.00028493,2]
[355128360,1740930664995,-749.36,0.00028493,2]
[355128361,1740930665006,-910.07,0.00028493,2]
[355128362,1740930665016,-500.0,0.00028493,2]
[355128363,1740930665033,-1121.7,0.00028493,2]
[355128364,1740930665044,-516.14,0.00028493,2]
[355128365,1740930665055,-429.06,0.00028493,2]
[355128366,1740930665065,-1622.86,0.00028493,2]
[355128367,1740930665075,-1793.0,0.00028493,2]
[355128368,1740930665085,-1560.4,0.00028493,2]
[355128369,1740930665095,-6000.0,0.00028493,2]
[355128370,1740930665105,-618.43,0.00028493,2]
[355128371,1740930665115,-649.89,0.00028493,2]
[355128372,1740930665125,-760.98,0.00028493,2]
[355128373,1740930665135,-889.47,0.00028493,2]
[355128374,1740930665145,-733.37,0.00028493,2]
[355128375,1740930665156,-806.07,0.00028493,2]
[355128376,1740930665166,-2443.66,0.00028493,2]
[355128377,1740930665176,-151.0,0.00028493,7]
[355128378,1740930665186,-3279.81,0.00028493,2]
[355128379,1740930665196,-1526.61,0.00028493,2]
[355128380,1740930665207,-1347.2,0.00028493,2]
[355128381,1740930665216,-727.44,0.00028493,2]
[355128382,1740930665226,-500.0,0.00028493,2]
[355128383,1740930665235,-150.0,0.00028501,2]
[355128384,1740930665245,-150.0,0.00028547,2]
[355128385,1740930665256,-150.0,0.00028708,2]
[355128386,1740930665266,-169.793464,0.00028767,2]
[355128387,1740930665277,-194.188231,0.00028767,2]
[355128388,1740930665293,-500.0,0.00028767,2]
[355128389,1740930665306,-500.0,0.00028767,2]
[355128390,1740930665317,-500.0,0.00028767,2]
[355128391,1740930665327,-1012.05,0.00028767,2]
[355128392,1740930665481,-849.78,0.00028767,2]
[355128393,1740930665493,-500.0,0.00028767,2]
[355128394,1740930665503,-1399.85,0.00028767,2]
[355128395,1740930665516,-2759.04,0.00028767,2]
[355128396,1740930665526,-1649.39,0.00028767,2]
[355128397,1740930665542,-1036.89,0.00028767,2]
[355128398,1740930665552,-777.5,0.00028767,2]
[355128399,1740930665562,-1965.61,0.00028767,2]
[355128400,1740930665571,-763.07,0.00028767,2]
[355128401,1740930665582,-1418.55,0.00028767,2]
[355128402,1740930665593,-500.0,0.00028767,2]
[355128403,1740930665605,-1316.21,0.00028767,2]
[355128404,1740930665615,-500.0,0.00028767,2]
[355128405,1740930665626,-1430.92,0.00028767,2]
[355128406,1740930665636,-1355.18,0.00028767,2]
[355128407,1740930665646,-500.0,0.00028767,2]
[355128408,1740930665657,-528.98,0.00028767,2]
[355128409,1740930665667,-500.0,0.00028767,2]
[355128410,1740930665676,-823.0,0.00028767,2]
[355128411,1740930665686,-831.23,0.00028767,2]